bitfinex/quotes_ETHUSD_20240716
["timestamp","ask_amount","ask_price","bid_price","bid_amount"]
[1721134320596,1.22581962,3420.8,3420.2,0.9874909]
[1721134321196,1.22581962,3420.9,3420.2,0.9874909]
[1721134321436,1.53242493,3421.0,3420.2,0.9874909]
[1721134321437,1.22581962,3421.0,3420.2,3.9112809]
[1721134321638,1.22581962,3421.1,3420.3,0.05846542]
[1721134321840,1.22581962,3421.2,3420.4,3.32057463]
[1721134322079,1.22581962,3421.1,3420.4,3.32057463]
[1721134323228,1.22581962,3421.2,3420.4,3.32057463]
[1721134323646,1.22581962,3421.2,3420.6,2.92345]
[1721134324257,5.41445,3421.7,3420.4,3.32057463]
[1721134324258,1.22581962,3421.3,3420.8,2.4677]
[1721134324478,1.22581962,3421.5,3421.0,2.92307]
[1721134324638,1.53256123,3421.7,3421.0,2.92307]
[1721134324639,1.22581962,3421.6,3421.0,2.92307]
[1721134324837,1.22581962,3421.7,3420.9,0.24677]
[1721134325046,2.92232,3422.0,3421.0,0.856101]
[1721134325047,1.22581962,3421.6,3421.0,0.856101]
[1721134325446,1.22581962,3421.5,3421.0,0.856101]
[1721134325861,1.22581962,3421.4,3420.8,2.4677]
[1721134326045,1.22581962,3421.4,3420.4,3.32060463]
[1721134326046,1.22581962,3421.3,3420.4,3.32060463]
[1721134326245,1.22581962,3421.2,3420.4,3.32060463]
[1721134326676,1.22581962,3421.3,3420.4,3.32060463]
[1721134326837,1.22581962,3421.1,3420.4,0.39697463]
[1721134327176,1.22581962,3421.0,3420.4,0.39697463]
[1721134327859,1.22581962,3420.8,3419.8,5.32467]
[1721134328064,1.22581962,3420.6,3419.8,5.32467]
[1721134328282,4.45631597,3420.8,3419.8,5.32467]
[1721134328283,1.22581962,3420.7,3419.8,5.32467]
[1721134328633,1.22581962,3420.6,3419.8,5.32467]
[1721134328835,1.22581962,3420.7,3419.8,5.32467]
[1721134329072,1.22581962,3420.6,3419.8,6.149568]
[1721134329797,1.22581962,3420.5,3419.8,6.149568]
[1721134329955,1.22581962,3420.6,3419.8,6.149568]
[1721134330352,1.22644729,3420.7,3419.8,6.149568]
[1721134330584,1.22644729,3420.8,3419.8,6.149568]
[1721134330898,1.22642819,3420.8,3419.9,3.8314378]
[1721134331191,1.22642819,3420.8,3420.0,2.92391]
[1721134331389,1.22642819,3420.8,3419.9,3.8314378]
[1721134331703,1.22642819,3420.8,3419.9,3.8314178]
[1721134332059,4.14971819,3420.8,3419.9,3.8314178]
[1721134332294,4.14971819,3420.8,3420.0,0.91561678]
[1721134332660,1.22642819,3420.8,3420.0,0.91561678]
[1721134333592,1.22642819,3420.7,3420.0,0.91561678]
[1721134334400,1.22642819,3420.6,3419.8,2.4006]
[1721134334595,1.22642819,3420.5,3419.5,2.92438]
[1721134334830,1.22642819,3420.3,3419.5,2.92438]
[1721134334969,1.22642819,3420.2,3419.6,0.819891]
[1721134335502,1.53277406,3420.4,3419.5,2.92438]
[1721134335503,1.22642819,3420.3,3419.5,2.92438]
[1721134336000,1.22642819,3420.4,3419.5,2.92438]
[1721134336213,1.22642819,3420.4,3419.4,5.27448]
[1721134336511,1.22642819,3420.1,3419.4,2.35]
[1721134336665,1.22642819,3420.1,3419.5,0.527457]
[1721134336869,1.22662924,3420.2,3419.5,0.527457]
[1721134337118,1.22662924,3420.3,3419.5,0.527457]
[1721134337429,1.22662924,3420.2,3419.5,0.527457]
[1721134337637,4.15043924,3420.2,3419.5,0.527457]
[1721134337783,4.15043924,3420.2,3419.4,2.35]
[1721134337985,1.22662924,3420.1,3419.4,2.35]
[1721134338584,4.15043924,3420.2,3419.4,2.35]
[1721134338931,1.22662924,3420.1,3419.4,2.35]
[1721134339234,1.22655132,3420.0,3419.4,2.35]
[1721134339531,1.22655132,3420.0,3419.0,10.22483]
[1721134339685,4.15054132,3420.0,3419.0,10.22483]
[1721134340212,2.92415,3419.8,3418.9,2.3712]
[1721134340382,2.92424,3419.7,3418.9,2.3712]
[1721134340590,4.1498458,3419.7,3418.9,2.3712]
[1721134340845,1.2256058,3419.6,3418.9,2.3712]
[1721134341385,4.1498458,3419.7,3418.9,2.3712]
[1721134342083,2.92415,3419.8,3418.9,2.3712]
[1721134342084,4.1497558,3419.8,3418.9,2.3712]
[1721134342289,4.1497558,3419.8,3419.0,0.529627]
[1721134343530,5.84837,3419.8,3419.0,0.529627]
[1721134343696,1.2256058,3419.9,3418.1,7.3]
[1721134343697,5.3518,3419.7,3418.1,7.3]
[1721134343903,5.3518,3419.7,3418.0,12.3095902]
[1721134343904,2.92473,3419.2,3418.2,2.9255]
[1721134344663,2.92453,3419.4,3418.4,2.92528]
[1721134344813,2.92441,3419.5,3418.5,3.458488]
[1721134345615,2.92441,3419.5,3418.5,3.458458]
[1721134347124,2.45348352,3419.4,3418.5,0.533238]
[1721134347311,2.92482,3419.1,3418.0,2.5118902]
[1721134347519,2.92496,3418.9,3418.0,2.5118902]
[1721134351668,2.92503,3418.8,3418.0,2.5118902]
[1721134352357,2.92503,3418.8,3418.0,0.1495902]
[1721134352947,2.925,3418.8,3418.0,0.1495902]
[1721134353124,2.925,3418.8,3418.0,1.04971522]
[1721134353338,2.92478,3419.1,3418.1,2.3]
[1721134353546,2.92467,3419.2,3418.2,0.05849986]
[1721134353928,2.92445,3419.5,3418.3,2.98391986]
[1721134354248,5.92453,3419.4,3418.3,2.98391986]
[1721134354449,5.92453,3419.4,3418.3,2.92542]
[1721134354450,2.92453,3419.4,3418.3,2.92542]
[1721134354636,3.0,3419.3,3418.3,2.92542]
[1721134354841,3.0,3419.3,3418.4,1.187946]
[1721134355064,3.0,3419.3,3418.4,1.12945075]
[1721134355229,5.92465,3419.3,3418.4,1.12945075]
[1721134355839,5.92465,3419.3,3418.2,0.62752752]
[1721134356028,5.92465,3419.3,3418.0,0.1495902]
[1721134356029,2.92488,3419.0,3418.0,0.1495902]
[1721134356225,2.92501,3418.8,3418.0,0.1495902]
[1721134356758,3.0,3418.7,3418.0,0.1495902]
[1721134358063,2.92493,3418.9,3418.0,0.1495902]
[1721134358225,2.92501,3418.8,3418.0,0.1495902]
[1721134358426,2.92501,3418.8,3418.1,0.60011202]
[1721134358971,3.0,3419.2,3418.2,2.2529]
[1721134359263,5.92481,3419.1,3418.2,2.2529]
[1721134359425,5.84962,3419.1,3418.2,2.2529]
[1721134359661,5.92484,3419.0,3418.2,2.2529]
[1721134359864,2.92504,3418.8,3418.2,2.2529]
[1721134360373,5.85011,3418.8,3418.1,0.60011202]
[1721134360574,2.92509,3418.7,3418.0,0.1495902]
[1721134360891,3.0,3419.0,3418.0,0.1495902]
[1721134360892,2.92498,3418.9,3418.0,0.1495902]
[1721134362258,5.84997,3418.9,3418.0,0.1495902]
[1721134362793,2.92498,3418.9,3418.0,0.1495902]
[1721134363787,3.0,3419.0,3418.3,2.92542]
[1721134364092,5.92462,3419.3,3418.4,0.292542]
[1721134364301,2.92466,3419.2,3418.1,2.92552]
[1721134364600,3.0,3419.1,3418.1,2.92552]
[1721134364806,3.0,3419.1,3418.0,0.1495902]
[1721134364807,2.92488,3419.0,3418.0,3.0752602]
[1721134365108,3.0,3418.9,3418.0,3.0752602]
[1721134365869,5.92492,3418.9,3418.0,3.0752602]
[1721134366111,5.92492,3418.9,3418.0,0.1495902]
[1721134366289,2.925,3418.8,3418.0,0.1495902]
[1721134367278,3.0,3418.9,3418.0,0.1495902]
[1721134367484,3.0,3419.3,3418.3,5.25311]
[1721134367801,2.92476,3419.1,3418.3,2.3277]
[1721134368004,2.92483,3419.0,3418.3,2.3277]
[1721134368589,5.84941,3419.2,3418.3,2.3277]
[1721134368797,3.0,3419.4,3418.3,5.25306]
[1721134369031,5.84893,3419.5,3418.4,0.8731124]
[1721134369312,5.9245,3419.4,3418.4,0.8731124]
[1721134369817,8.84905,3419.4,3418.4,0.8731124]
[1721134370457,8.84905,3419.4,3418.3,5.25306]
[1721134370458,2.9248,3419.1,3418.3,2.3277]
[1721134371289,2.92489,3419.0,3418.0,0.1495902]
[1721134372117,2.92494,3418.9,3418.0,0.1495902]
[1721134372335,2.92494,3418.9,3418.0,0.74971422]
[1721134374041,2.92507,3418.8,3418.0,0.74971422]
[1721134375303,0.05838352,3418.8,3418.0,0.1495902]
[1721134375603,2.2686,3419.1,3418.0,0.1495902]
[1721134375604,2.92533,3418.5,3418.0,0.1495902]
[1721134376202,2.92535,3418.4,3418.0,0.1495902]
[1721134378701,5.92512,3418.7,3418.0,0.1495902]
[1721134378702,2.9252,3418.6,3418.0,0.1495902]
[1721134379838,2.92527,3418.5,3418.0,0.1495902]
[1721134380049,3.0,3418.7,3418.0,0.1495902]
[1721134380346,3.799037,3419.1,3418.0,0.1495902]
[1721134380347,5.92484,3419.0,3418.0,0.1495902]
[1721134380547,2.92505,3418.8,3418.0,0.45712922]
[1721134381115,2.92505,3418.8,3418.0,0.1495902]
[1721134381415,4.14743972,3418.8,3418.0,0.1495902]
[1721134381826,2.92534,3418.5,3418.0,0.1495902]
[1721134382030,2.92522,3418.6,3418.0,0.1495902]
[1721134382031,2.92534,3418.4,3418.0,0.1495902]
[1721134383042,2.92546,3418.3,3418.0,0.1495902]
[1721134384269,2.9256,3418.1,3418.0,0.1495902]
[1721134384471,7.07749721,3418.1,3418.0,0.1495902]
[1721134384811,5.8512,3418.1,3418.0,0.1495902]
[1721134385039,7.07778618,3418.1,3418.0,0.1495902]
[1721134385218,4.45847151,3418.1,3418.0,0.1495902]
[1721134385429,4.15184859,3418.1,3418.0,0.1495902]
[1721134385816,2.9256,3418.1,3418.0,0.1495902]
[1721134386067,4.15184859,3418.1,3418.0,0.1495902]
[1721134386253,2.9256,3418.1,3418.0,0.1495902]
[1721134386472,1.22624859,3418.2,3418.0,0.1495902]
[1721134386742,4.15178859,3418.2,3418.0,0.1495902]
[1721134387153,4.15207734,3418.2,3418.0,0.1495902]
[1721134387725,1.22653734,3418.2,3418.0,0.1495902]
[1721134388022,1.22653734,3418.3,3418.0,0.1495902]
[1721134388424,1.22653734,3418.5,3418.0,0.1495902]
[1721134389158,1.22653734,3418.4,3418.0,0.1495902]
[1721134390479,3.0,3418.7,3418.0,0.1495902]
[1721134390480,5.92508,3418.7,3418.0,0.1495902]
[1721134390650,1.22671842,3418.4,3418.0,0.1495902]
[1721134390858,1.22671842,3418.3,3418.0,0.1495902]
[1721134392158,1.22671842,3418.2,3418.0,0.1495902]
[1721134392775,4.15222842,3418.2,3418.0,0.1495902]
[1721134393498,4.15255781,3418.1,3418.0,0.1495902]
[1721134393702,4.45933706,3418.1,3418.0,0.1495902]
[1721134393853,2.9256,3418.1,3418.0,0.1495902]
[1721134394382,4.15255446,3418.1,3418.0,0.1495902]
[1721134394594,4.15247696,3418.1,3418.0,0.1495902]
[1721134394895,2.9256,3418.1,3418.0,0.1495902]
[1721134395202,1.22688329,3418.1,3418.0,0.1495902]
[1721134395493,4.15239595,3418.1,3418.0,0.1495902]
[1721134396044,2.9256,3418.1,3418.0,0.1495902]
[1721134396866,1.53344576,3418.1,3418.0,0.1495902]
[1721134397176,1.22672768,3418.1,3418.0,0.1495902]
[1721134397347,1.22672768,3418.2,3418.0,0.1495902]
[1721134397550,4.15232768,3418.1,3418.0,0.1495902]
[1721134399253,4.1522193,3418.1,3418.0,0.1495902]
[1721134399448,1.2266193,3418.1,3418.0,0.1495902]
[1721134399664,4.1522093,3418.2,3418.0,0.1495902]
[1721134399991,1.22656765,3418.2,3418.0,0.1495902]
[1721134400354,1.22654689,3418.2,3418.0,0.1495902]
[1721134400690,1.22654689,3418.1,3418.0,0.1495902]
[1721134401189,2.9256,3418.1,3418.0,0.1495902]
[1721134401402,4.45878361,3418.1,3418.0,0.1495902]
[1721134401554,5.381201,3418.1,3418.0,0.1495902]
[1721134401754,3.84801739,3418.1,3418.0,0.1495902]
[1721134402289,6.83200091,3418.1,3418.0,0.1495902]
[1721134403097,7.38454107,3418.1,3418.0,0.1495902]
[1721134403462,1.53334107,3418.1,3418.0,0.1495902]
[1721134403683,4.53334107,3418.2,3418.0,0.1495902]
[1721134403869,2.9256,3418.1,3418.0,0.1495902]
[1721134404769,4.53334107,3418.2,3418.0,0.1495902]
[1721134404986,7.1520481,3418.2,3418.0,0.1495902]
[1721134405185,4.2265281,3418.2,3418.0,0.1495902]
[1721134405365,1.2265281,3418.1,3418.0,0.1495902]
[1721134406213,2.9256,3418.1,3418.0,0.1495902]
[1721134406371,4.45890985,3418.1,3418.0,0.1495902]
[1721134406710,2.9256,3418.1,3418.0,0.1495902]
[1721134407010,5.90958352,3418.1,3418.0,0.1495902]
[1721134407223,6.98453905,3418.1,3418.0,0.1495902]
[1721134407873,8.51791117,3418.1,3418.0,0.1495902]
[1721134408075,6.98453905,3418.1,3418.0,0.1495902]
[1721134408622,5.90958352,3418.1,3418.0,0.1495902]
[1721134409412,10.75003046,3418.1,3418.0,0.1495902]
[1721134409782,8.90958352,3418.1,3418.0,0.1495902]
[1721134410020,10.74979361,3418.1,3418.0,0.1495902]
[1721134410222,13.67539361,3418.1,3418.0,0.1495902]
[1721134410426,11.83518352,3418.1,3418.0,0.1495902]
[1721134411247,17.0670953,3418.1,3418.0,0.1495902]
[1721134411427,20.79368352,3418.1,3418.0,0.1495902]
[1721134413110,2.92674,3416.8,3416.0,9.777]
[1721134413360,4.15296086,3416.7,3416.1,0.9777]
[1721134413564,4.15296086,3416.7,3416.0,2.477]
[1721134413565,2.92689,3416.6,3416.0,2.477]
[1721134413864,2.92699,3416.5,3416.0,2.477]
[1721134414149,2.92689,3416.6,3416.0,2.477]
[1721134414543,1.53263858,3417.0,3416.0,2.477]
[1721134414544,5.85404,3416.5,3416.0,2.477]
[1721134414730,2.92699,3416.5,3416.0,2.477]
[1721134414957,2.92699,3416.5,3416.1,0.2477]
[1721134416029,2.92699,3416.5,3416.0,2.477]
[1721134416557,2.92705,3416.4,3416.0,2.477]
[1721134417208,2.98555352,3416.3,3416.0,2.477]
[1721134417413,2.92725,3416.2,3415.7,2.3764]
[1721134417871,2.927,3416.5,3415.1,2.3764]
[1721134417872,2.9275,3415.9,3415.1,2.3764]
[1721134418024,2.9276,3415.8,3415.1,3.34404]
[1721134418231,2.9276,3415.8,3415.1,2.3764]
[1721134418232,2.92765,3415.7,3415.1,2.3764]
[1721134418648,2.92775,3415.6,3415.1,2.3764]
[1721134419051,2.92784,3415.5,3415.1,2.3764]
[1721134419272,2.92805,3415.3,3415.1,2.3764]
[1721134419413,2.92805,3415.3,3414.8,2.3764]
[1721134419619,2.92805,3415.3,3414.8,2.62899902]
[1721134419853,2.92829,3415.0,3414.8,2.3764]
[1721134420592,2.92841,3414.9,3414.5,0.1495902]
[1721134420749,2.92844,3414.8,3414.5,0.1495902]
[1721134421644,2.92829,3415.0,3414.5,0.1495902]
[1721134421868,3.0,3415.4,3414.6,2.516]
[1721134422064,2.92805,3415.3,3414.7,0.79707202]
[1721134422269,2.92805,3415.3,3414.5,0.1495902]
[1721134422546,2.92831,3415.0,3414.5,0.1495902]
[1721134423553,2.92834,3414.9,3414.5,0.1495902]
[1721134423960,2.92811,3415.2,3414.5,0.1495902]
[1721134424168,2.928,3415.3,3414.5,0.1495902]
[1721134424388,2.928,3415.3,3414.6,0.25259902]
[1721134424887,2.92784,3415.5,3414.6,0.31116596]
[1721134425087,3.0,3415.4,3414.6,0.25259902]
[1721134425295,5.92792,3415.4,3414.6,0.25259902]
[1721134425451,3.0,3415.4,3414.7,0.82233492]
[1721134425656,3.0,3415.5,3414.8,2.2625]
[1721134425897,2.92793,3415.4,3414.8,2.2625]
[1721134426056,3.0,3415.3,3414.8,2.2625]
[1721134426256,2.92828,3415.0,3414.5,0.1495902]
[1721134426564,2.92858,3414.7,3414.5,0.1495902]
[1721134427088,3.0,3414.6,3414.5,0.1495902]
[1721134427278,5.9286,3414.6,3414.5,0.1495902]
[1721134429375,3.0,3414.6,3414.5,0.1495902]
[1721134429683,5.9284,3414.9,3414.5,0.1495902]
[1721134429870,6.52124,3414.9,3414.5,0.1495902]
[1721134430072,5.9284,3414.9,3414.5,0.1495902]
[1721134430272,5.9284,3414.9,3414.6,2.479]
[1721134430273,3.0,3414.9,3414.6,2.479]
[1721134430510,2.92813,3415.2,3414.6,2.479]
[1721134430681,3.0,3415.1,3414.6,2.479]
[1721134430883,2.92793,3415.4,3414.6,2.479]
[1721134431084,2.92778,3415.6,3414.7,0.26285902]
[1721134431288,2.92745,3416.0,3414.8,0.05856704]
[1721134431612,2.92748,3415.9,3414.9,2.2697]
[1721134431914,2.92748,3415.9,3414.9,2.32826102]
[1721134432099,2.4707,3416.4,3414.9,2.2697]
[1721134432100,2.92757,3415.8,3414.9,2.2697]
[1721134432271,2.4707,3416.4,3414.9,2.2697]
[1721134432272,2.92733,3416.1,3415.0,0.7977059]
[1721134432471,2.92733,3416.1,3415.0,3.7259259]
[1721134432679,2.92708,3416.4,3415.0,3.7259259]
[1721134432917,2.9272,3416.3,3415.1,7.84515]
[1721134433100,10.29667,3416.9,3415.3,2.2878]
[1721134433101,2.92683,3416.7,3415.3,2.2878]
[1721134433281,2.92683,3416.7,3415.5,2.92777]
[1721134433481,2.92689,3416.6,3415.5,2.92777]
[1721134433876,2.92688,3416.6,3415.5,2.92777]
[1721134434673,2.92715,3416.3,3415.4,0.773187]
[1721134434876,3.05838352,3416.2,3415.3,2.2878]
[1721134435428,2.92754,3415.9,3415.3,2.2878]
[1721134435630,2.92781,3415.6,3414.8,2.4716]
[1721134435970,2.92788,3415.5,3414.8,2.4716]
[1721134436130,3.0,3415.4,3414.8,2.4716]
[1721134438017,3.0,3415.6,3414.8,3.02658602]
[1721134438264,3.0,3415.9,3414.8,5.95499602]
[1721134438623,5.92753,3415.9,3414.8,5.95499602]
[1721134438941,5.92753,3415.9,3414.8,8.47099602]
[1721134438942,3.0,3415.9,3414.8,8.47099602]
[1721134439522,3.0,3415.9,3414.9,2.92833]
[1721134439744,5.9275,3415.9,3415.0,1.1399396]
[1721134439954,3.0,3415.9,3415.1,2.3733]
[1721134440172,2.92755,3415.9,3415.1,2.3733]
[1721134440456,3.0,3415.8,3415.1,2.3733]
[1721134440762,3.0,3415.8,3415.1,3.32456156]
[1721134440978,2.9267,3416.9,3415.1,2.3733]
[1721134440979,2.92768,3415.7,3415.1,2.3733]
[1721134441124,2.92774,3415.6,3415.1,2.3733]
[1721134441446,5.92774,3415.6,3415.1,2.3733]
[1721134441768,3.0,3415.6,3415.1,2.3733]
[1721134441931,3.0,3415.7,3415.1,2.3733]
[1721134442258,5.92768,3415.7,3415.1,2.3733]
[1721134442584,3.0,3415.7,3415.1,2.3733]
[1721134442864,3.0,3415.9,3415.2,2.92808]
[1721134443064,2.9273,3416.2,3415.2,2.92808]
[1721134443230,3.0,3416.1,3415.2,2.92808]
[1721134443433,3.0,3416.1,3415.4,5.4231]
[1721134443628,12.61745,3416.8,3415.4,5.4231]
[1721134443629,2.92689,3416.6,3415.5,2.9278]
[1721134444453,2.92689,3416.6,3415.4,5.4231]
[1721134444454,2.92689,3416.6,3415.6,2.9277]
[1721134444653,2.92689,3416.6,3415.7,2.2799]
[1721134445070,2.92731,3416.2,3415.7,2.2799]
[1721134445279,0.292731,3416.1,3415.7,2.2799]
[1721134445580,2.92714,3416.3,3415.7,2.2799]
[1721134445748,2.92699,3416.5,3415.7,2.2799]
[1721134445932,3.0,3416.4,3415.7,2.2799]
[1721134446666,2.92729,3416.2,3414.9,2.3449]
[1721134446971,2.9278,3415.6,3414.9,2.3449]
[1721134447167,2.9278,3415.6,3414.5,2.5596902]
[1721134447168,5.92788,3415.5,3414.5,2.5596902]
[1721134447369,2.92794,3415.4,3414.5,2.5596902]
[1721134447578,2.92809,3415.2,3414.5,2.5596902]
[1721134447785,3.0,3415.1,3414.5,2.5596902]
[1721134448150,3.0,3415.1,3414.5,3.10855322]
[1721134448352,2.92797,3415.4,3414.5,2.5596902]
[1721134448669,2.92809,3415.2,3414.5,2.5596902]
[1721134448984,2.92828,3415.0,3414.5,0.1495902]
[1721134449361,3.0,3415.3,3414.5,0.1495902]
[1721134449557,2.92822,3415.1,3414.5,0.1495902]
[1721134449975,2.92792,3415.4,3414.5,0.1495902]
[1721134450174,3.0,3415.3,3414.5,0.1495902]
[1721134450983,3.0,3415.5,3414.6,2.92858]
[1721134451283,3.0,3415.5,3414.5,3.0782502]
[1721134451588,3.0,3415.5,3414.5,0.1495902]
[1721134451757,3.0,3415.5,3414.6,2.92859]
[1721134451962,3.885539,3415.5,3414.6,2.92859]
[1721134452380,3.885539,3415.5,3414.5,0.1495902]
[1721134452381,2.92797,3415.4,3414.5,0.1495902]
[1721134452695,2.92818,3415.1,3414.5,0.1495902]
[1721134453004,5.92801,3415.3,3414.5,0.1495902]
[1721134453207,3.0,3415.3,3414.5,0.1495902]
[1721134453366,3.0,3415.4,3414.5,3.0782602]
[1721134454491,3.0,3415.4,3414.9,2.516]
[1721134454653,3.0,3415.9,3414.9,5.44432]
[1721134454857,5.92755,3415.9,3414.9,5.44432]
[1721134455093,2.92757,3415.8,3414.9,5.44432]
[1721134455268,3.0,3415.7,3414.9,5.44432]
[1721134455469,8.85511,3415.9,3414.9,5.44432]
[1721134455789,2.92757,3415.8,3414.9,2.92832]
[1721134456103,3.0,3415.7,3414.9,2.92832]
[1721134456263,3.0,3415.7,3414.7,2.3134]
[1721134456463,3.0,3415.7,3414.7,5.24184]
[1721134456694,5.9277,3415.7,3414.7,2.3134]
[1721134456899,0.885527,3415.6,3414.7,5.24187]
[1721134458480,3.0,3415.7,3415.0,2.92818]
[1721134458690,4.21749629,3415.9,3415.0,2.92818]
[1721134459093,5.92753,3415.9,3414.7,2.3134]
[1721134459280,5.98591352,3415.9,3414.7,2.3134]
[1721134459479,1.22305056,3415.7,3414.7,2.3134]
[1721134459718,1.22305056,3415.7,3414.5,0.1495902]
[1721134459719,4.15114056,3415.2,3414.5,0.1495902]
[1721134459877,4.15128056,3415.1,3414.5,0.1495902]
[1721134460071,5.92831,3415.0,3414.5,0.1495902]
[1721134460271,2.92857,3414.7,3414.5,0.1495902]
[1721134460523,0.585706,3414.6,3414.5,0.1495902]
[1721134460816,1.22305056,3414.8,3414.5,0.1495902]
[1721134461014,3.0,3414.8,3414.5,0.1495902]
[1721134461224,2.92859,3414.7,3414.5,0.1495902]
[1721134461510,7.15150134,3414.6,3414.5,0.1495902]
[1721134462006,10.38577948,3414.6,3414.5,0.1495902]
[1721134462197,10.38540325,3414.6,3414.5,0.1495902]
[1721134462392,8.8572,3414.6,3414.5,0.1495902]
[1721134462593,11.7858,3414.6,3414.5,0.1495902]
[1721134462972,8.8572,3414.6,3414.5,0.1495902]
[1721134463210,10.38527161,3414.6,3414.5,0.1495902]
[1721134463370,8.8572,3414.6,3414.5,0.1495902]
[1721134463569,10.38555966,3414.6,3414.5,0.1495902]
[1721134463818,16.39915966,3414.6,3414.5,0.1495902]
[1721134463977,16.70509537,3414.6,3414.5,0.1495902]
[1721134464174,16.70509537,3414.6,3412.7,5.44622]
[1721134464175,2.92914,3414.0,3412.0,1.52900499]
[1721134464423,2.92914,3414.0,3411.7,4.8515]
[1721134464424,1.22198445,3413.0,3411.7,4.8515]
[1721134464716,1.52748057,3413.2,3412.1,2.516]
[1721134464717,1.22198445,3412.9,3412.1,2.516]
[1721134464902,5.9299,3413.1,3412.1,2.516]
[1721134465129,3.0,3413.1,3412.2,0.2516]
[1721134465330,5.92989,3413.1,3412.2,0.2516]
[1721134465531,1.22088302,3413.6,3412.5,2.516]
[1721134465716,1.22088302,3413.6,3412.6,2.4186]
[1721134465717,3.0,3413.6,3412.6,2.4186]
[1721134465921,4.15015302,3413.9,3412.6,2.4186]
[1721134466126,4.15015302,3413.9,3412.9,2.516]
[1721134466127,0.01904371,3413.9,3412.9,2.516]
[1721134466346,0.01904371,3413.9,3413.3,2.516]
[1721134466508,0.01904371,3413.9,3413.5,2.92946]
[1721134466710,0.01904371,3413.9,3413.7,5.44531]
[1721134468557,2.92822,3415.1,3414.0,2.92907]
[1721134468855,2.74718256,3415.3,3414.2,2.516]
[1721134468856,4.14894302,3415.3,3414.2,2.516]
[1721134469016,2.9281,3415.2,3414.2,2.516]
[1721134469618,4.14898302,3415.2,3414.2,2.516]
[1721134469937,1.22088302,3415.2,3414.2,2.516]
[1721134470152,4.22088302,3415.3,3414.2,2.516]
[1721134470352,1.22088302,3415.2,3414.3,0.9456705]
[1721134470541,4.14902302,3415.2,3414.3,0.9456705]
[1721134470743,4.22088302,3415.3,3414.3,3.8745205]
[1721134470926,4.22088302,3415.4,3414.3,3.8745205]
[1721134471254,3.0,3415.3,3414.3,0.9456705]
[1721134471461,3.0,3415.3,3414.4,2.92876]
[1721134471826,3.0,3415.3,3414.5,2.4521]
[1721134473659,2.92899,3414.2,3413.1,7.3]
[1721134473968,2.92899,3414.2,3413.1,2.92983]
[1721134474263,2.92907,3414.1,3413.2,0.827753]
[1721134474463,2.92899,3414.2,3413.2,0.827753]
[1721134474464,2.92912,3414.0,3413.2,0.827753]
[1721134474956,2.92912,3414.0,3412.9,2.4178]
[1721134475473,2.92904,3414.1,3413.0,2.92996]
[1721134475770,2.92891,3414.3,3413.2,2.516]
[1721134475937,4.52565003,3414.5,3413.2,2.516]
[1721134475938,3.0,3414.2,3413.3,2.9297]
[1721134476141,7.14927433,3414.5,3412.9,2.4178]
[1721134476142,3.0,3414.5,3413.6,4.7929]
[1721134476325,3.0,3414.5,3413.6,8.57135]
[1721134476530,3.0,3414.6,3413.6,8.57135]
[1721134476732,5.9286,3414.6,3413.6,8.57135]
[1721134477023,5.9286,3414.6,3412.1,2.9307]
[1721134477024,2.92968,3413.4,3411.9,0.61290903]
[1721134477228,1.52238352,3414.5,3411.1,3.48675194]
[1721134477229,2.93126,3411.5,3411.1,0.1495902]
[1721134477452,2.93038,3412.6,3411.1,0.1495902]
[1721134477453,18.17604,3411.2,3411.1,0.1495902]
[1721134477653,6.90659329,3411.2,3411.1,0.1495902]
[1721134477837,11.22172015,3411.2,3411.1,0.11656758]
[1721134478038,10.14210097,3411.2,3411.1,0.11656758]
[1721134478239,9.77360345,3411.2,3411.1,0.11656758]
[1721134478538,5.93151,3411.2,3411.1,0.11656758]
[1721134478739,8.86302,3411.2,3411.1,0.11656758]
[1721134478971,3.60678713,3411.2,3411.1,0.11656758]
[1721134479139,3.0,3411.2,3411.1,0.11656758]
[1721134479347,8.86302,3411.2,3411.1,0.11656758]
[1721134480172,16.03631713,3411.2,3411.1,0.11656758]
[1721134480672,15.42953,3411.2,3411.1,0.11656758]
[1721134480865,16.03479561,3411.2,3411.1,0.11656758]
[1721134481058,2.93253,3410.1,3408.9,2.3667]
[1721134481368,2.93289,3409.7,3408.9,2.3667]
[1721134481584,2.93272,3409.8,3408.9,2.3667]
[1721134481885,2.9331,3409.4,3408.5,3.365]
[1721134482234,2.9331,3409.4,3408.3,2.4523]
[1721134482235,2.93313,3409.4,3408.3,2.4523]
[1721134482427,3.0,3410.0,3408.5,3.546]
[1721134482678,2.93248,3410.1,3409.0,2.4268]
[1721134482847,2.93255,3410.0,3409.0,2.4268]
[1721134483165,5.93236,3410.3,3409.0,2.4268]
[1721134483353,2.93232,3410.3,3409.1,0.536026]
[1721134483540,5.93238,3410.2,3409.1,0.536026]
[1721134483742,5.93238,3410.2,3409.0,2.4268]
[1721134483944,2.93249,3410.1,3409.0,2.4268]
[1721134484149,5.93238,3410.2,3409.0,2.4268]
[1721134484367,3.0,3410.2,3409.1,0.55]
[1721134484569,2.9324,3410.2,3409.1,0.55]
[1721134484768,2.93221,3410.4,3409.1,0.55]
[1721134484769,2.93248,3410.1,3409.2,0.884364]
[1721134484983,2.93221,3410.4,3409.3,0.55]
[1721134484984,2.93223,3410.4,3409.3,0.55]
[1721134485200,2.93223,3410.4,3409.2,0.884364]
[1721134485201,2.93247,3410.1,3409.2,0.884364]
[1721134485518,2.9329,3409.6,3409.2,0.884364]
[1721134485824,2.93315,3409.3,3409.0,2.4268]
[1721134486310,2.93222,3410.4,3408.0,2.3822]
[1721134486311,2.93351,3408.9,3408.0,2.3822]
[1721134486511,2.93364,3408.8,3408.0,2.3822]
[1721134486799,2.93369,3408.7,3408.0,2.3822]
[1721134487167,3.0,3409.7,3408.0,2.3822]
[1721134487365,2.99125352,3409.7,3408.1,0.59282]
[1721134487564,2.93282,3409.7,3408.5,3.546]
[1721134487800,2.93186,3410.8,3408.1,0.59282]